[Event "Romanian Championship 2024"]
[Site "Eforie Nord"]
[Date "2024.02.27"]
[Round "5.19"]
[White "Coicev, Matei-Andrei"]
[Black "Dodoi, Matei-Teodor"]
[Result "1/2-1/2"]
[ECO "A34"]
[WhiteElo "2122"]
[BlackElo "1947"]
[Annotator "RC"]
[PlyCount "130"]
[EventDate "2024.02.24"]
[EventType "swiss"]
[EventCountry "ROU"]
[SourceTitle "playchess.com"]
[Source "ChessBase"]
[SourceQuality "1"]
[TimeControl "40/5400+30:900+30"]

1. c4 {[%emt 0:00:09]} Nf6 {[%emt 0:00:08]} 2. Nc3 {[%emt 0:00:31]} d5 {[%emt 0:00:36]} 3. cxd5 {[%emt 0:06:03]} Nxd5 {[%emt 0:00:13]} 4. g3 {[%emt 0:01:03]} g6 {[%emt 0:00:34]} 5. Bg2 {[%emt 0:00:14]} Nxc3 {[%emt 0:00:07]} 6. bxc3 {[%emt 0:00:30]} Bg7 {[%emt 0:00:08]} 7. Nf3 {[%emt 0:00:43]} O-O {[%emt 0:00:55]} 8. O-O {[%emt 0:00:29]} c5 {[%emt 0:03:05]} 9. Rb1 {[%emt 0:06:14]} Nc6 {[%emt 0:03:03]} 10. Qc2 {[%emt 0:02:29]} Qc7 {[%emt 0:06:52]} 11. d3 {[%emt 0:01:25]} Bd7 {[%emt 0:06:26]} 12. Be3 {[%emt 0:01:53]} b6 {[%emt 0:02:17]} 13. Nd2 {[%emt 0:01:11]} Rac8 {[%emt 0:03:10]} 14. Nc4 {[%emt 0:03:19]} Rfd8 {[%emt 0:07:13]} 15. a4 {[%emt 0:05:16]} Be6 {[%emt 0:03:33]} 16. Na3 {[%emt 0:03:44]} Qd7 {[%emt 0:02:54]} 17. Rfd1 {[%emt 0:04:26]} Bd5 {[%emt 0:06:17]} 18. Bxd5 {[%emt 0:06:25]} Qxd5 {[%emt 0:00:08]} 19. Nc4 {[%emt 0:01:16]} Ne5 {[%emt 0:06:57]} 20. Nxe5 {[%emt 0:01:29]} Qxe5 {[%emt 0:00:49]} 21. Rdc1 {[%emt 0:00:57]} Rc6 {[%emt 0:12:30]} 22. a5 {[%emt 0:03:53]} Qc7 {[%emt 0:03:12]} 23. axb6 {[%emt 0:06:25]} Rxb6 {[%emt 0:01:50]} 24. Rxb6 {[%emt 0:01:29]} axb6 {[%emt 0:00:07]} 25. Qa4 {[%emt 0:02:43]} Qd7 {[%emt 0:06:07]} 26. Qb3 {[%emt 0:05:35]} Qc6 {[%emt 0:01:48]} 27. Rb1 {[%emt 0:01:04]} Rb8 {[%emt 0:01:45]} 28. c4 {[%emt 0:05:46]} Be5 {[%emt 0:01:14]} 29. Qa3 {[%emt 0:01:03]} h5 {[%emt 0:01:37]} 30. Qa7 {[%emt 0:09:48]} h4 {[%emt 0:05:43]} 31. Qxe7 {[%emt 0:02:27]} h3 {[%emt 0:00:22]} 32. f3 {[%emt 0:00:10]} Re8 {[%emt 0:00:33]} 33. Rxb6 {[%emt 0:04:41]} Qa4 {[%emt 0:00:16]} 34. Qg5 {[%emt 0:01:01]} Bd4 {[%emt 0:05:18]} 35. Rxg6+ {[%emt 0:01:28]} fxg6 {[%emt 0:00:08]} 36. Qxg6+ {[%emt 0:00:03]} Kf8 {[%emt 0:00:21]} 37. Qf5+ {[%emt 0:01:41]} Ke7 {[%emt 0:00:48]} 38. Bxd4 {[%emt 0:00:43]} cxd4 {[%emt 0:01:23]} 39. Qe5+ {[%emt 0:01:16]} Kd7 {[%emt 0:01:26]} 40. Qxd4+ {[%emt 0:00:00]} Kc7 {[%emt 0:00:00]} 41. Kf2 {[%emt 0:02:58]} Qc6 {[%emt 0:08:17]} 42. e4 {[%emt 0:03:50]} Ra8 {[%emt 0:02:21]} 43. Qg7+ {[%emt 0:08:07]} Qd7 {[%emt 0:07:24]} 44. Qxd7+ {[%emt 0:01:18]} Kxd7 {[%emt 0:00:05]} 45. g4 {[%emt 0:00:08]} Ra3 {[%emt 0:01:07]} 46. d4 {[%emt 0:11:07]} Ra4 {[%emt 0:07:23]} 47. Kg3 {[%emt 0:00:30]} Rxc4 {[%emt 0:00:00]} 48. Kxh3 {[%emt 0:00:00]} Rxd4 {[%emt 0:00:00]} 49. Kg3 {[%emt 0:00:00]} Ke6 {[%emt 0:00:00]} 50. Kf4 {[%emt 0:00:00]} Kf6 {[%emt 0:00:00]} 51. h4 {[%emt 0:00:00]} Kg6 {[%emt 0:00:00]} 52. h5+ {[%emt 0:00:00]} Kh6 {[%emt 0:00:00]} 53. Kf5 {[%emt 0:00:00]} Rd8 {[%emt 0:00:00]} 54. f4 {[%emt 0:00:00]} Rf8+ {[%emt 0:00:00]} 55. Ke5 {[%emt 0:00:00]} Re8+ {[%emt 0:00:13]} 56. Kd5 {[%emt 0:04:30]} Rf8 {[%emt 0:04:47]} 57. f5 {[%emt 0:00:00]} Kg5 {[%emt 0:00:00]} 58. Kd6 {[%emt 0:00:00]} Kxg4 {[%emt 0:00:00]} 59. Ke7 {[%emt 0:00:00]} Ra8 {[%emt 0:00:00]} 60. f6 {[%emt 0:00:00]} Kxh5 {[%emt 0:00:00]} 61. f7 {[%emt 0:00:13]} Kg6 {[%emt 0:00:00]} 62. f8=N+ {[%emt 0:00:25]} Rxf8 {[%emt 0:00:26]} 63. Kxf8 {[%emt 0:00:23]} Kf6 {[%emt 0:00:05]} 64. Ke8 {[%emt 0:00:08]} Ke5 {[%emt 0:00:04]} 65. Ke7 {[%emt 0:00:31]} Kxe4 {[%emt 0:00:05]} 1/2-1/2

[Event "Romanian Championship 2024"]
[Site "Eforie Nord"]
[Date "2024.02.27"]
[Round "5.20"]
[White "Melinte, Rares-Andrei"]
[Black "Ciocani, Iosif"]
[Result "1/2-1/2"]
[ECO "E04"]
[WhiteElo "1989"]
[BlackElo "2063"]
[Annotator "NA RC"]
[PlyCount "65"]
[EventDate "2024.02.24"]
[EventType "swiss"]
[EventCountry "ROU"]
[SourceTitle "playchess.com"]
[Source "ChessBase"]
[SourceQuality "1"]
[TimeControl "40/5400+30:900+30"]

1. d4 {[%emt 0:00:01]} Nf6 {[%emt 0:01:48]} 2. c4 {[%emt 0:00:09]} e6 {[%emt 0:00:06]} 3. g3 {[%emt 0:00:10]} d5 {[%emt 0:00:16]} 4. Nf3 {[%emt 0:00:14]} dxc4 {[%emt 0:00:16]} 5. Bg2 {[%emt 0:00:09]} c6 {[%emt 0:00:16]} 6. Ne5 {[%emt 0:00:17]} Bb4+ {[%emt 0:00:54]} 7. Bd2 {[%emt 0:00:44]} Be7 {[%emt 0:00:16]} 8. e3 {[%emt 0:00:26]} b5 {[%emt 0:00:49]} 9. a4 {[%emt 0:00:38]} b4 {[%emt 0:00:43]} 10. O-O {[%emt 0:01:20]} Nd5 {[%emt 0:12:43]} 11. Qc2 {[%emt 0:04:49]} O-O {[%emt 0:07:36]} 12. Rd1 {[%emt 0:02:03]} Ba6 {[%emt 0:03:23]} 13. Nxc4 {[%emt 0:03:07]} Nd7 {[%emt 0:07:53]} 14. e4 {[%emt 0:02:24]} N5f6 {[%emt 0:25:27]} 15. Bf4 {[%emt 0:04:11]} Nh5 {[%emt 0:02:46]} 16. Be3 {[%emt 0:03:50]} Rc8 {[%emt 0:00:16]} 17. Ne5 {[%emt 0:07:50]} Bb7 {[%emt 0:05:34]} 18. Nd2 {[%emt 0:04:10]} c5 {[%emt 0:03:39]} 19. Qb3 {[%emt 0:06:41]} cxd4 {[%emt 0:25:19]} 20. Bxd4 {[%emt 0:02:40]} Nxe5 {[%emt 0:00:00]} 21. Bxe5 {[%emt 0:00:15]} Ba6 {[%emt 0:00:00]} 22. Qf3 {[%emt 0:04:09]} Qa5 {[%emt 0:00:00]} 23. Bd4 {[%emt 0:01:31]} Nf6 {[%emt 0:00:00]} 24. Nb3 {[%emt 0:01:01]} Qc7 {[%emt 0:00:00]} 25. Rac1 {[%emt 0:02:06]} Qb8 {[%emt 0:00:00]} 26. Nc5 {[%emt 0:16:55]} Bxc5 {[%emt 0:00:00]} 27. Bxc5 {[%emt 0:00:24]} Rfd8 {[%emt 0:00:00]} 28. Be7 {[%emt 0:11:34]} Rxd1+ {[%emt 0:00:00]} 29. Qxd1 {[%emt 0:00:15]} Rxc1 {[%emt 0:01:35]} 30. Qxc1 {[%emt 0:00:06]} Qe8 {[%emt 0:00:54]} 31. Bxb4 {[%emt 0:08:38]} Qxa4 {[%emt 0:00:09]} 32. Qe1 {[%emt 0:00:49]} Bb7 {[%emt 0:01:24]} 33. f3 {[%emt 0:05:56]} 1/2-1/2

[Event "Romanian Championship 2024"]
[Site "Eforie Nord"]
[Date "2024.02.27"]
[Round "5.21"]
[White "Sava, Robert-Gabriel"]
[Black "Corbu, George-Alexandru"]
[Result "1-0"]
[ECO "A50"]
[WhiteElo "2053"]
[BlackElo "1902"]
[Annotator "NA RC"]
[PlyCount "53"]
[EventDate "2024.02.24"]
[EventType "swiss"]
[EventCountry "ROU"]
[SourceTitle "playchess.com"]
[Source "ChessBase"]
[SourceQuality "1"]
[TimeControl "40/5400+30:900+30"]

1. d4 {[%emt 0:00:03]} Nf6 {[%emt 0:00:14]} 2. c4 {[%emt 0:00:12]} e6 {[%emt 0:00:19]} 3. g4 {[%emt 0:08:11]} d5 {[%emt 0:06:46]} 4. g5 {[%emt 0:00:11]} Ne4 {[%emt 0:03:45]} 5. Bg2 {[%emt 0:00:35]} Bb4+ {[%emt 0:12:09]} 6. Kf1 {[%emt 0:00:06]} Be7 {[%emt 0:02:18]} 7. h4 {[%emt 0:01:56]} f6 {[%emt 0:10:52]} 8. Nc3 {[%emt 0:02:53]} Nxc3 {[%emt 0:02:14]} 9. bxc3 {[%emt 0:00:05]} c6 {[%emt 0:02:24]} 10. Nh3 {[%emt 0:01:47]} Nd7 {[%emt 0:06:48]} 11. Nf4 {[%emt 0:13:03]} Nb6 {[%emt 0:07:58]} 12. gxf6 {[%emt 0:04:09]} Bxf6 {[%emt 0:01:58]} 13. e4 {[%emt 0:00:54]} Qd7 {[%emt 0:23:09]} 14. e5 {[%emt 0:07:03]} Bd8 {[%emt 0:00:39]} 15. Bh3 {[%emt 0:00:25]} Qf7 {[%emt 0:00:07]} 16. Qg4 {[%emt 0:05:06]} O-O {[%emt 0:05:48]} 17. Rg1 {[%emt 0:03:05]} Nxc4 {[%emt 0:01:40]} 18. Rg2 {[%emt 0:00:53]} g6 {[%emt 0:05:21]} 19. Kg1 {[%emt 0:04:22]} b5 {[%emt 0:03:02]} 20. h5 {[%emt 0:03:25]} Qf5 {[%emt 0:02:03]} 21. Qg3 {[%emt 0:00:29]} Qe4 {[%emt 0:00:09]} 22. hxg6 {[%emt 0:01:03]} h6 {[%emt 0:00:01]} 23. g7 {[%emt 0:01:45]} Rf7 {[%emt 0:00:35]} 24. f3 {[%emt 0:02:47]} Qh7 {[%emt 0:00:01]} 25. Nxe6 {[%emt 0:03:17]} Ba5 {[%emt 0:00:12]} 26. Qh4 {[%emt 0:03:28]} Bd7 {[%emt 0:01:20]} 27. Nf8 {[%emt 0:02:24]} 1-0

[Event "Romanian Championship 2024"]
[Site "Eforie Nord"]
[Date "2024.02.27"]
[Round "5.22"]
[White "Buzbuchi, Ionut"]
[Black "Cruceru-Uceanu, Tudor-Mihai"]
[Result "1/2-1/2"]
[ECO "D02"]
[WhiteElo "2039"]
[BlackElo "1894"]
[Annotator "NA RC"]
[PlyCount "59"]
[EventDate "2024.02.24"]
[EventType "swiss"]
[EventCountry "ROU"]
[SourceTitle "playchess.com"]
[Source "ChessBase"]
[SourceQuality "1"]
[TimeControl "40/5400+30:900+30"]

1. Nf3 {[%emt 0:00:02]} d5 {[%emt 0:00:03]} 2. d4 {[%emt 0:00:06]} Nf6 {[%emt 0:00:09]} 3. Bf4 {[%emt 0:00:05]} e6 {[%emt 0:00:12]} 4. e3 {[%emt 0:00:06]} Be7 {[%emt 0:00:55]} 5. h3 {[%emt 0:01:29]} c5 {[%emt 0:00:48]} 6. c3 {[%emt 0:00:19]} Bd6 {[%emt 0:01:31]} 7. Ne5 {[%emt 0:02:58]} Qc7 {[%emt 0:00:29]} 8. Nd2 {[%emt 0:01:34]} Nbd7 {[%emt 0:00:29]} 9. Ndf3 {[%emt 0:02:27]} c4 {[%emt 0:00:32]} 10. Be2 {[%emt 0:04:24]} O-O {[%emt 0:00:53]} 11. O-O {[%emt 0:00:05]} Ne4 {[%emt 0:02:59]} 12. Nxd7 {[%emt 0:12:09]} Bxd7 {[%emt 0:00:29]} 13. Bxd6 {[%emt 0:02:44]} Qxd6 {[%emt 0:00:21]} 14. Qc2 {[%emt 0:00:58]} b5 {[%emt 0:01:12]} 15. Nd2 {[%emt 0:08:00]} Nxd2 {[%emt 0:00:21]} 16. Qxd2 {[%emt 0:00:05]} a5 {[%emt 0:00:22]} 17. a3 {[%emt 0:07:54]} Rab8 {[%emt 0:02:56]} 18. Bd1 {[%emt 0:01:44]} Rb6 {[%emt 0:07:33]} 19. Bc2 {[%emt 0:00:20]} Rfb8 {[%emt 0:00:29]} 20. e4 {[%emt 0:01:48]} dxe4 {[%emt 0:00:30]} 21. Bxe4 {[%emt 0:00:06]} Bc6 {[%emt 0:00:38]} 22. Qc2 {[%emt 0:03:07]} h6 {[%emt 0:02:07]} 23. Rfe1 {[%emt 0:00:15]} b4 {[%emt 0:11:14]} 24. cxb4 {[%emt 0:07:44]} axb4 {[%emt 0:00:36]} 25. Qxc4 {[%emt 0:00:21]} Bxe4 {[%emt 1:05:12]} 26. Rxe4 {[%emt 0:00:05]} bxa3 {[%emt 0:00:00]} 27. bxa3 {[%emt 0:00:04]} Rb1+ {[%emt 0:00:00]} 28. Re1 {[%emt 0:00:06]} Rxe1+ {[%emt 0:00:00]} 29. Rxe1 {[%emt 0:00:04]} Qxa3 {[%emt 0:00:00]} 30. d5 {[%emt 0:00:28]} 1/2-1/2

[Event "Romanian Championship 2024"]
[Site "Eforie Nord"]
[Date "2024.02.27"]
[Round "5.23"]
[White "Danila, Tudor-Gabriel"]
[Black "Nastore, Pavel-Alexandru"]
[Result "0-1"]
[ECO "B22"]
[WhiteElo "1901"]
[BlackElo "2182"]
[Annotator "RC"]
[PlyCount "64"]
[EventDate "2024.02.24"]
[EventType "swiss"]
[EventCountry "ROU"]
[SourceTitle "playchess.com"]
[Source "ChessBase"]
[SourceQuality "1"]
[TimeControl "40/5400+30:900+30"]

1. e4 {[%emt 0:00:02]} c5 {[%emt 0:00:11]} 2. c3 {[%emt 0:00:03]} Nf6 {[%emt 0:00:14]} 3. e5 {[%emt 0:00:03]} Nd5 {[%emt 0:00:09]} 4. d4 {[%emt 0:00:03]} cxd4 {[%emt 0:00:11]} 5. Nf3 {[%emt 0:00:03]} Nc6 {[%emt 0:00:11]} 6. cxd4 {[%emt 0:00:04]} d6 {[%emt 0:00:11]} 7. Bc4 {[%emt 0:00:03]} Nb6 {[%emt 0:00:11]} 8. Bb3 {[%emt 0:00:04]} dxe5 {[%emt 0:00:06]} 9. d5 {[%emt 0:00:05]} Na5 {[%emt 0:00:10]} 10. Nc3 {[%emt 0:00:03]} f6 {[%emt 0:00:14]} 11. O-O {[%emt 0:00:58]} Nxb3 {[%emt 0:05:45]} 12. Qxb3 {[%emt 1:34:59]} e6 {[%emt 1:28:57]} 13. Rd1 {[%emt 0:00:00]} exd5 {[%emt 0:00:00]} 14. Nxd5 {[%emt 0:00:00]} Be6 {[%emt 0:00:00]} 15. Nc7+ {[%emt 0:00:00]} Qxc7 {[%emt 0:00:00]} 16. Qxe6+ {[%emt 0:00:00]} Be7 {[%emt 0:00:00]} 17. Be3 {[%emt 0:00:00]} Qc4 {[%emt 0:00:00]} 18. Qh3 {[%emt 0:00:00]} O-O {[%emt 0:00:00]} 19. Rac1 {[%emt 0:00:00]} Rfd8 {[%emt 0:00:00]} 20. Re1 {[%emt 0:00:00]} Qd5 {[%emt 0:00:00]} 21. Bxb6 {[%emt 0:00:00]} axb6 {[%emt 0:00:00]} 22. Qg4 {[%emt 0:00:00]} Qd7 {[%emt 0:00:00]} 23. Qc4+ {[%emt 0:00:00]} Kh8 {[%emt 0:00:00]} 24. a3 {[%emt 0:00:00]} Rac8 {[%emt 0:00:00]} 25. Qe4 {[%emt 0:00:00]} Rxc1 {[%emt 0:00:00]} 26. Rxc1 {[%emt 0:00:00]} Qd5 {[%emt 0:00:00]} 27. Qxd5 {[%emt 0:00:00]} Rxd5 {[%emt 0:00:00]} 28. Kf1 {[%emt 0:00:00]} Bd8 {[%emt 0:00:00]} 29. Ke2 {[%emt 0:00:00]} Kg8 {[%emt 0:00:00]} 30. b4 {[%emt 0:00:00]} Kf7 {[%emt 0:00:00]} 31. Nd2 {[%emt 0:00:00]} f5 {[%emt 0:00:00]} 32. f3 {[%emt 0:00:00]} Rxd2+ {[%emt 0:00:00]} 0-1

[Event "Romanian Championship 2024"]
[Site "Eforie Nord"]
[Date "2024.02.28"]
[Round "6.1"]
[White "Parligras, Mircea-Emilian"]
[Black "Lupulescu, Constantin"]
[Result "1/2-1/2"]
[ECO "D35"]
[WhiteElo "2539"]
[BlackElo "2589"]
[Annotator "TA"]
[PlyCount "42"]
[EventDate "2024.02.24"]
[EventType "swiss"]
[EventCountry "ROU"]
[SourceTitle "playchess.com"]
[Source "ChessBase"]
[SourceQuality "1"]
[TimeControl "40/5400+30:900+30"]

{[%evp 13,42,20,21,13,6,10,22,18,14,10,14,15,24,11,30,22,30,13,13,24,16,10,12,16,15,27,16,0,0,0,0]} 1. d4 {[%emt 0:00:04]} Nf6 {[%emt 0:00:03]} 2. c4 {[%emt 0:00:10]} e6 {[%emt 0:00:03]} 3. Nf3 {[%emt 0:00:11]} d5 {[%emt 0:00:05]} 4. Nc3 {[%emt 0:00:12]} c6 {[%emt 0:00:10]} 5. cxd5 {[%emt 0:00:34]} exd5 {[%emt 0:00:07]} 6. Bf4 {[%emt 0:00:32]} Bd6 {[%emt 0:00:50]} 7. Bxd6 {[%emt 0:00:16]} Qxd6 {[%emt 0:00:06]} 8. Qb3 {[%emt 0:01:18]} O-O {[%emt 0:00:31]} 9. e3 {[%emt 0:01:05]} Re8 {[%emt 0:00:18]} 10. Bd3 {[%emt 0:02:03]} Nbd7 {[%emt 0:01:57]} 11. O-O {[%emt 0:00:26]} Ne4 {[%emt 0:00:18]} 12. Bxe4 {[%emt 0:01:22]} dxe4 {[%emt 0:00:06]} 13. Nd2 {[%emt 0:00:19]} Nf6 {[%emt 0:00:35]} 14. h3 {[%emt 0:00:57] Wards off Ng4} Qe7 {[%emt 0:00:35]} 15. Qa3 {[%emt 0:00:47]} Qxa3 {[%emt 0:00:44]} 16. bxa3 {[%emt 0:00:08]} b6 {[%emt 0:00:12]} 17. Rfc1 {[%emt 0:02:56]} Ba6 {[%emt 0:00:45]} 18. a4 {[%emt 0:00:36][%cal Oa4a5]} Rac8 {[%emt 0:00:21] [#]} 19. a5 $1 {[%emt 0:01:11]} c5 {[%emt 0:00:30]} 20. Nb3 {[%emt 0:01:01]} cxd4 {[%emt 0:00:14]} 21. Nxd4 {[%emt 0:00:08]} bxa5 {[%emt 0:00:33] An uneventful encounter.   Weighted Error Value: White=0.05 (flawless) /Black=0.03 (flawless) .  OK:         	White=6     	Black=5} 1/2-1/2

[Event "Romanian Championship 2024"]
[Site "Eforie Nord"]
[Date "2024.02.28"]
[Round "6.2"]
[White "Ghimpu, Samuel-Timotei"]
[Black "Gavrilescu, David"]
[Result "1/2-1/2"]
[ECO "E18"]
[WhiteElo "2467"]
[BlackElo "2523"]
[Annotator "TA"]
[PlyCount "29"]
[EventDate "2024.02.24"]
[EventType "swiss"]
[EventCountry "ROU"]
[SourceTitle "playchess.com"]
[Source "ChessBase"]
[SourceQuality "1"]
[TimeControl "40/5400+30:900+30"]

{[%evp 14,29,16,3,16,12,7,14,10,7,6,6,14,0,0,0,0,0]} 1. c4 {[%emt 0:00:30]} e6 {[%emt 0:00:41]} 2. g3 {[%emt 0:01:45]} d5 {[%emt 0:00:19]} 3. Bg2 {[%emt 0:00:25]} Nf6 {[%emt 0:00:25]} 4. Nf3 {[%emt 0:00:31]} Be7 {[%emt 0:00:11]} 5. O-O {[%emt 0:00:29]} O-O {[%emt 0:00:07]} 6. b3 {[%emt 0:00:17]} b6 {[%emt 0:00:33]} 7. d4 {[%emt 0:00:27]} Bb7 {[%emt 0:01:13]} 8. Nc3 {[%emt 0:00:46] The position is equal.} c5 {[%emt 0:01:00]} 9. dxc5 {[%emt 0:09:41]} dxc4 {[%emt 0:00:18]} 10. Qxd8 {[%emt 0:16:12]} Rxd8 {[%emt 0:01:34]} 11. cxb6 {[%emt 0:01:04]} axb6 {[%emt 0:00:31]} 12. bxc4 {[%emt 0:03:46]} Rc8 {[%emt 0:09:30]} 13. Nd2 {[%emt 0:08:22]} Bxg2 {[%emt 0:02:23]} 14. Kxg2 {[%emt 0:00:07]} Nc6 {[%emt 0:04:35]} 15. Rb1 {[%emt 0:15:13] A rather calm draw.   Weighted Error Value: White=0.05 (flawless) /Black=0.04 (flawless) .  OK:         	White=4     	Black=2} 1/2-1/2

[Event "Romanian Championship 2024"]
[Site "Eforie Nord"]
[Date "2024.02.28"]
[Round "6.3"]
[White "Bulmaga, Irina"]
[Black "Manolache, Marius"]
[Result "0-1"]
[ECO "B09"]
[WhiteElo "2439"]
[BlackElo "2387"]
[Annotator "TA"]
[PlyCount "60"]
[EventDate "2024.02.24"]
[EventType "swiss"]
[EventCountry "ROU"]
[SourceTitle "playchess.com"]
[Source "ChessBase"]
[SourceQuality "1"]
[TimeControl "40/5400+30:900+30"]

{[%evp 16,60,20,22,55,33,52,47,72,7,22,0,0,0,0,-31,-39,-132,-126,-149,-148,-158,-168,-182,-183,-173,-130,-131,-125,-278,-291,-369,-350,-394,-324,-453,-369,-457,-437,-450,-429,-396,-392,-396,-391,-447,-434]} 1. e4 {[%emt 0:00:12]} d6 {[%emt 0:01:01]} 2. d4 {[%emt 0:00:09]} Nf6 {[%emt 0:00:06]} 3. Nc3 {[%emt 0:00:05]} g6 {[%emt 0:00:07]} 4. f4 {[%emt 0:00:19]} Bg7 {[%emt 0:00:11]} 5. Nf3 {[%emt 0:00:10]} O-O {[%emt 0:00:20]} 6. Bd3 {[%emt 0:00:18]} Nc6 {[%emt 0:00:18]} 7. e5 dxe5 {[%emt 0:00:40]} 8. fxe5 {[%emt 0:02:17]} Nh5 {[%emt 0:00:47]} 9. Be3 {[%emt 0:01:40]} f6 {[%emt 0:05:37]} 10. exf6 {[%emt 0:12:14]} exf6 {[%emt 0:00:10]} 11. Qd2 {[%emt 0:04:39]} Bg4 {[%emt 0:08:23] White is slightly better.} 12. O-O {[%emt 0:10:33]} (12. O-O-O $16) 12... Re8 $11 {[%emt 0:18:45]} 13. h3 {[%emt 0:29:07]} Bxf3 {[%emt 0:02:57]} 14. Rxf3 {[%emt 0:00:03] Threatens to win with g4.} f5 {[%emt 0:02:22]} 15. Bc4+ {[%emt 0:03:55]} (15. Ne2 $5) 15... Kh8 {[%emt 0:01:57][%cal Oe8e3] Hoping for ...Rxe3!} 16. Nd5 {[%emt 0:03:17]} (16. Rd1 $15) 16... Re4 $17 {[%emt 0:07:33]} 17. c3 {[%emt 0:18:53]} Na5 {[%emt 0:02:10]} 18. b3 {[%emt 0:00:56] [#]} b5 $1 $36 {[%emt 0:05:27][%mdl 2560] Black has strong initiative.} 19. Bd3 {[%emt 0:04:41]} (19. Bg5 Qd7) 19... Qxd5 {[%emt 0:00:10]} 20. Bxe4 {[%emt 0:00:05]} fxe4 {[%emt 0:05:08]} 21. Rf2 {[%emt 0:00:01]} Ng3 {[%emt 0:02:10] White must now prevent ...Re8.} 22. Kh2 $2 {[%emt 0:01:07] Now White is beyond hope.} (22. Bh6 $17 Nf5 23. Bxg7+ Kxg7 24. Qf4) 22... Nf5 $19 {[%emt 0:00:17]} 23. Raf1 {[%emt 0:00:51]} Nc6 {[%emt 0:02:04]} 24. b4 {[%emt 0:03:15]} Re8 {[%emt 0:03:15]} 25. Qe2 {[%emt 0:01:08]} Nd8 {[%emt 0:04:42]} 26. Rf4 {[%emt 0:01:10]} Nxe3 {[%emt 0:03:52]} 27. Qxe3 {[%emt 0:00:06]} Bh6 {[%emt 0:00:10]} (27... Qxa2 28. Rxe4 Re6 29. Rxe6 Nxe6 (29... Qxe6 30. Qxe6 Nxe6 31. Re1 $16) 30. Re1 $11) 28. Rxe4 {[%emt 0:00:16]} Qxe4 {[%emt 0:00:30]} ({Not} 28... Bxe3 29. Rxe8+ Kg7 30. Rxe3 $19) 29. Qxh6 {[%emt 0:00:07]} Qe7 {[%emt 0:00:26] Wards off Rf8+} 30. Kh1 {[%emt 0:01:55]} Nf7 {[%emt 0:01:01] Weighted Error Value: White=0.48/Black=0.18 (very precise) .  Mistake:       	White=3     	---        Inaccurate:     	White=2     	---        OK:         	White=7     	Black=10     Best:        	---       	Black=3      Brilliant:      	---       	Black=1} 0-1

[Event "Romanian Championship 2024"]
[Site "Eforie Nord"]
[Date "2024.02.28"]
[Round "6.4"]
[White "Prisacaru, Stefan-Emilian"]
[Black "Nevednichy, Vladislav"]
[Result "1/2-1/2"]
[ECO "D37"]
[WhiteElo "2289"]
[BlackElo "2451"]
[Annotator "RC"]
[PlyCount "53"]
[EventDate "2024.02.24"]
[EventType "swiss"]
[EventCountry "ROU"]
[SourceTitle "playchess.com"]
[Source "ChessBase"]
[SourceQuality "1"]
[TimeControl "40/5400+30:900+30"]

1. d4 {[%emt 0:00:02]} Nf6 {[%emt 0:03:14]} 2. c4 {[%emt 0:00:05]} e6 {[%emt 0:00:29]} 3. Nf3 {[%emt 0:00:05]} d5 {[%emt 0:00:09]} 4. Nc3 {[%emt 0:00:05]} Nbd7 {[%emt 0:00:04]} 5. Bf4 {[%emt 0:00:21]} dxc4 {[%emt 0:00:18]} 6. e3 {[%emt 0:00:06]} b5 {[%emt 0:00:54]} 7. Nxb5 {[%emt 0:01:06]} Bb4+ {[%emt 0:00:04]} 8. Nc3 {[%emt 0:01:07]} Nd5 {[%emt 0:00:07]} 9. a3 {[%emt 0:05:38]} Nxc3 {[%emt 0:01:12]} 10. Qd2 {[%emt 0:00:28]} Nd5 {[%emt 0:01:19]} 11. axb4 {[%emt 0:00:04]} Nxf4 {[%emt 0:00:06]} 12. exf4 {[%emt 0:00:03]} Bb7 {[%emt 0:07:22]} 13. Be2 {[%emt 0:10:50]} O-O {[%emt 0:01:28]} 14. O-O {[%emt 0:00:14]} Nb6 {[%emt 0:01:14]} 15. Rfc1 {[%emt 0:07:26]} Qd6 {[%emt 0:01:21]} 16. Ne5 {[%emt 0:09:25]} Rfd8 {[%emt 0:01:46]} 17. Nxc4 {[%emt 0:19:56]} Nxc4 {[%emt 0:00:18]} 18. Rxc4 {[%emt 0:04:51]} Ba6 {[%emt 0:00:19]} 19. Rc5 {[%emt 0:02:17]} Bxe2 {[%emt 0:00:11]} 20. Qxe2 {[%emt 0:00:04]} Qxf4 {[%emt 0:03:21]} 21. Qe5 {[%emt 0:03:00]} Qxd4 {[%emt 0:03:27]} 22. Qxd4 {[%emt 0:00:09]} Rxd4 {[%emt 0:00:02]} 23. Rxc7 {[%emt 0:00:06]} g6 {[%emt 0:05:51]} 24. b5 {[%emt 0:05:38]} Rb8 {[%emt 0:02:15]} 25. g3 {[%emt 0:02:59]} Rxb5 {[%emt 0:00:12]} 26. Raxa7 {[%emt 0:00:46]} Rf5 {[%emt 0:00:03]} 27. Rc2 {[%emt 0:02:14]} 1/2-1/2